bitfinex/quotes_SOLUSD_20250922
["timestamp","ask_amount","ask_price","bid_price","bid_amount"]
[1758518975269,0.69,232.05,232.01,4.30998174]
[1758518975467,0.69,232.04,231.99,16.9662845]
[1758518975678,0.69,232.04,232.0,0.72]
[1758518975851,0.69,232.03,232.0,33.1]
[1758518976673,0.69,232.02,232.0,33.1]
[1758518976979,0.69,232.01,231.96,5.03091604]
[1758518977350,0.69,232.01,231.97,33.12]
[1758518978053,0.69,232.01,231.97,38.1507664]
[1758518979973,0.69,232.03,231.97,38.1507664]
[1758518980174,12.95924318,232.06,231.97,38.1507664]
[1758518980175,0.69,232.05,231.98,0.72]
[1758518981572,0.69,232.05,231.99,4.31053062]
[1758518981769,17.26852532,232.06,231.99,4.31053062]
[1758518981950,0.69,232.04,231.99,4.31053062]
[1758518982154,0.69,232.03,231.99,5.03053062]
[1758518982360,0.69,232.03,231.99,0.72]
[1758518982560,17.26852532,232.06,231.97,33.84]
[1758518982876,0.69,232.02,231.97,33.84]
[1758518983065,0.69,232.02,231.98,0.72]
[1758518983375,0.69,232.04,231.99,0.72]
[1758518983566,17.26848344,232.06,231.99,5.03052641]
[1758518983871,17.26848344,232.06,231.99,4.31052641]
[1758518983872,0.69,232.05,231.99,4.31052641]
[1758518984076,0.69,232.05,232.0,0.72]
[1758518984465,0.69,232.04,232.0,0.72]
[1758518985856,0.69,232.04,232.0,5.03031054]
[1758518986078,0.69,232.03,231.97,0.72]
[1758518987570,0.69,232.03,231.96,37.43092737]
[1758518987770,5.00015181,232.02,231.95,0.72]
[1758518988567,17.9605147,232.02,231.95,5.03126149]
[1758518988758,0.69,232.01,231.95,5.03126149]
[1758518988959,0.69,232.0,231.95,5.03126149]
[1758518989271,0.69,231.99,231.95,5.03126149]
[1758518989466,17.2705147,232.02,231.96,0.72]
[1758518989467,0.69,232.01,231.96,0.72]
[1758518989680,0.69,232.0,231.96,0.72]
[1758518990180,0.69,232.0,231.96,5.03096756]
[1758518992584,0.69,231.99,231.94,38.1513228]
[1758518992770,0.69,231.99,231.95,0.72]
[1758518993566,5.00023691,232.01,231.96,0.72]
[1758518993769,0.69,232.0,231.95,4.31115875]
[1758518993958,0.69,232.0,231.97,0.72]
[1758518995981,36.20000214,232.02,231.97,0.72]
[1758518996169,0.69,232.01,231.97,0.72]
[1758518996376,35.50977851,232.04,231.97,4.31084427]
[1758518996571,35.50977851,232.04,231.98,0.72]
[1758518996572,31.2,232.02,231.98,0.72]
[1758518996770,0.69,232.03,231.98,0.72]
[1758518996977,0.65,232.02,231.98,0.72]
[1758518997688,4.30980224,232.03,231.95,4.31127398]
[1758518997892,0.65,232.01,231.96,0.69]
[1758518998080,0.65,232.01,231.97,0.69]
[1758518999483,0.65,232.0,231.96,4.31091234]
[1758518999791,0.65,232.02,231.96,5.00091234]
[1758519000298,0.65,232.02,231.97,0.69]
[1758519000794,0.65,232.02,231.98,0.69]
[1758519000976,31.2,232.03,231.98,0.69]
[1758519001177,0.65,232.01,231.93,33.12]
[1758519001385,4.31053062,231.99,231.92,5.00182035]
[1758519001711,0.65,231.98,231.92,5.00182035]
[1758519001870,0.65,231.97,231.92,5.00182035]
[1758519002070,0.65,231.96,231.92,5.00182035]
[1758519002271,0.65,231.96,231.88,0.69]
[1758519002667,0.65,231.96,231.87,4.31276146]
[1758519002871,0.65,231.95,231.88,0.69]
[1758519003696,4.96127481,231.95,231.89,4.31238949]
[1758519004000,0.65,231.94,231.89,4.31238949]
[1758519004202,0.65,231.94,231.89,5.00238949]
[1758519005090,0.65,231.93,231.89,0.69]
[1758519005479,0.65,231.92,231.87,5.00276146]
[1758519006177,0.65,231.92,231.88,0.69]
[1758519006779,48.20908802,231.99,231.87,4.31276146]
[1758519006780,4.31117446,231.96,231.87,4.31276146]
[1758519006979,0.65,231.94,231.89,0.69]
[1758519007393,0.65,231.94,231.9,0.69]
[1758519007595,0.65,231.93,231.88,0.69]
[1758519007787,0.65,231.92,231.87,4.31276146]
[1758519007980,0.65,231.91,231.87,0.69]
[1758519008500,0.65,231.9,231.86,0.1]
[1758519008673,0.65,231.9,231.86,0.79]
[1758519009907,0.65,231.9,231.86,5.10294683]
[1758519010202,0.65,231.9,231.86,0.79]
[1758519010404,4.31164575,231.93,231.86,0.1]
[1758519010596,0.65,231.89,231.86,0.1]
[1758519010794,0.7,231.88,231.86,0.1]
[1758519011195,0.7,231.87,231.86,0.1]
[1758519011807,0.7,231.9,231.86,0.1]
[1758519011994,0.7,231.89,231.86,0.1]
[1758519012579,0.7,231.88,231.86,0.1]
[1758519013602,0.7,231.93,231.87,0.71]
[1758519014406,33.14,231.99,231.87,0.71]
[1758519014587,132.9,231.98,231.87,0.71]
[1758519014784,164.1,231.98,231.87,0.71]
[1758519015099,164.1,231.98,231.87,33.87]
[1758519015300,164.1,231.98,231.88,0.71]
[1758519015508,168.4107221,231.98,231.88,0.71]
[1758519015887,5.0107221,231.98,231.89,4.31238949]
[1758519016088,5.0107221,231.98,231.9,0.71]
[1758519017284,5.0107221,231.98,231.91,4.31201759]
[1758519017681,5.0107221,231.98,231.91,5.02201759]
[1758519018406,0.7,231.98,231.91,5.02201759]
[1758519018604,0.7,231.98,231.92,0.71]
[1758519020009,5.01076694,231.98,231.89,4.31238174]
[1758519020311,0.7,231.97,231.89,5.02238174]
[1758519020516,5.01111002,231.96,231.89,5.02238174]
[1758519020699,0.7,231.95,231.89,5.02238174]
[1758519020894,0.7,231.94,231.89,5.02238174]
[1758519021109,0.7,231.94,231.87,10.78186287]
[1758519021110,0.7,231.93,231.87,0.71]
[1758519022212,0.7,231.93,231.88,4.31257547]
[1758519022406,0.7,231.92,231.88,4.31257547]
[1758519022800,0.7,231.92,231.88,5.02257547]
[1758519023007,0.7,231.94,231.89,0.71]
[1758519023311,0.7,231.93,231.89,5.02229379]
[1758519023494,0.7,231.93,231.89,4.31229379]
[1758519023696,0.7,231.93,231.86,0.1]
[1758519023896,0.7,231.93,231.87,0.71]
[1758519024913,0.7,231.93,231.87,5.02270908]
[1758519025114,0.7,231.93,231.87,4.31270908]
[1758519025411,0.7,231.93,231.88,0.71]
[1758519025612,0.7,231.93,231.89,0.71]
[1758519026903,0.7,231.93,231.89,5.02226181]
[1758519027816,43.91727824,231.97,231.86,0.1]
[1758519027817,33.14,231.97,231.86,0.1]
[1758519028027,0.66,231.92,231.86,0.1]
[1758519028189,31.2,231.88,231.86,0.1]
[1758519028394,31.86,231.88,231.86,0.1]
[1758519028590,0.66,231.9,231.86,0.1]
[1758519028804,27.56,231.91,231.86,0.78]
[1758519029002,1.72931843,231.92,231.87,0.68]
[1758519029199,0.66,231.92,231.87,0.68]
[1758519029413,31.86,231.91,231.86,0.1]
[1758519030709,33.58931843,231.91,231.86,0.1]
[1758519030899,15.09271237,231.9,231.86,0.1]
[1758519031217,33.18,231.89,231.86,0.1]
[1758519031421,33.84,231.89,231.86,0.1]
[1758519031621,0.66,231.89,231.86,0.1]
[1758519031803,15.09271237,231.9,231.86,0.1]
[1758519032117,33.84,231.88,231.86,0.1]
[1758519033112,33.18,231.88,231.86,0.1]
[1758519033319,4.97276146,231.87,231.86,0.1]
[1758519034419,4.31276146,231.87,231.86,0.1]
[1758519034920,35.51276146,231.87,231.86,0.1]
[1758519035211,4.31276146,231.87,231.86,0.1]
[1758519035422,35.51276146,231.87,231.86,0.1]
[1758519038929,4.31276146,231.87,231.86,0.1]
[1758519039705,31.2,231.87,231.86,0.1]
[1758519041230,36.17276146,231.87,231.86,0.1]
[1758519041705,4.97276146,231.87,231.86,0.1]
[1758519041911,7.85430509,231.87,231.86,0.1]
[1758519042512,9.58384784,231.87,231.86,0.1]
[1758519043233,6.70230421,231.87,231.86,0.1]
[1758519044636,32.92954275,231.87,231.86,0.1]
[1758519044934,64.34,231.87,231.86,0.1]
[1758519045119,68.65276146,231.87,231.86,0.1]
[1758519045320,38.11276146,231.87,231.86,0.1]
[1758519045613,46.16016322,231.87,231.85,0.1]
[1758519045819,2.87938442,231.86,231.85,1e-08]
[1758519046206,3.53938442,231.86,231.85,1e-08]
[1758519046518,5.26922635,231.86,231.85,1e-08]
[1758519047400,9.58217381,231.86,231.85,1e-08]
[1758519049627,31.2,231.83,231.82,1e-08]
[1758519049829,67.31938442,231.83,231.82,1e-08]
[1758519050129,67.97938442,231.83,231.82,1e-08]
[1758519050329,36.46952564,231.83,231.82,1e-08]
[1758519050629,73.38303122,231.83,231.82,1e-08]
[1758519051008,40.12303122,231.83,231.82,1e-08]
[1758519051215,73.38303122,231.83,231.82,1e-08]
[1758519051929,40.12303122,231.83,231.82,1e-08]
[1758519052137,70.5036468,231.83,231.82,1e-08]
[1758519052737,37.2436468,231.83,231.82,1e-08]
[1758519052929,70.4836468,231.83,231.82,1e-08]
[1758519053611,37.2436468,231.83,231.82,1e-08]
[1758519053813,70.5036468,231.83,231.82,1e-08]
[1758519060426,1.73014122,231.83,231.82,0.67000001]
[1758519060636,33.24,231.83,231.82,0.67000001]
[1758519060933,33.24,231.84,231.82,0.67000001]
[1758519061255,4.31350558,231.83,231.82,1e-08]
[1758519061452,6.04327271,231.83,231.82,1e-08]
[1758519061823,6.04327271,231.83,231.82,0.67000001]
[1758519062444,39.28327271,231.83,231.82,0.67000001]
[1758519063047,39.28327271,231.83,231.82,1e-08]
[1758519063342,6.04327271,231.83,231.82,1e-08]
[1758519063653,39.28327271,231.83,231.82,1e-08]
[1758519065737,39.98327271,231.83,231.82,1e-08]
[1758519065944,42.85586006,231.83,231.82,1e-08]
[1758519070637,62.85586006,231.83,231.82,1e-08]
[1758519070842,66.45990034,231.83,231.82,1e-08]
[1758519071045,62.85586006,231.83,231.82,1e-08]
[1758519071229,66.45990034,231.83,231.82,1e-08]
[1758519071750,62.85586006,231.83,231.82,1e-08]
[1758519072434,66.45990034,231.83,231.82,1e-08]
[1758519073055,28.91586006,231.83,231.82,1e-08]
[1758519073231,8.91586006,231.83,231.82,1e-08]
[1758519073557,39.99327271,231.83,231.82,1e-08]
[1758519073736,42.86586006,231.83,231.82,1e-08]
[1758519075757,42.17586006,231.83,231.82,1e-08]
[1758519076051,42.15586006,231.83,231.82,0.71000001]
[1758519077255,42.17586006,231.83,231.82,1e-08]
[1758519083251,42.17586006,231.83,231.82,0.71000001]
[1758519083561,42.86586006,231.83,231.82,1e-08]
[1758519083761,46.46990034,231.83,231.82,1e-08]
[1758519084141,42.17586006,231.83,231.82,1e-08]
[1758519085357,45.77990034,231.83,231.82,1e-08]
[1758519086155,45.73990034,231.83,231.82,1e-08]
[1758519086337,8.91586006,231.83,231.82,1e-08]
[1758519086537,42.13586006,231.83,231.82,1e-08]
[1758519087360,45.73990034,231.83,231.82,1e-08]
[1758519087963,12.51990034,231.83,231.82,1e-08]
[1758519088167,45.73990034,231.83,231.82,1e-08]
[1758519089767,12.51990034,231.83,231.82,1e-08]
[1758519089980,45.71990034,231.83,231.82,1e-08]
[1758519090472,42.11586006,231.83,231.82,1e-08]
[1758519090773,31.2,231.8,231.76,0.1]
[1758519090954,31.2,231.77,231.76,0.1]
[1758519091155,67.29258735,231.77,231.76,0.1]
[1758519091563,80.27257653,231.77,231.76,0.1]
[1758519091759,80.27257653,231.77,231.76,0.76]
[1758519092072,80.95257653,231.77,231.76,1e-08]
[1758519092454,80.27257653,231.77,231.76,1e-08]
[1758519093565,84.58719878,231.77,231.76,1e-08]
[1758519096455,88.20161447,231.77,231.76,1e-08]
[1758519097259,51.36719878,231.77,231.76,1e-08]
[1758519097585,88.18161447,231.77,231.76,1e-08]
[1758519097764,84.56719878,231.77,231.76,1e-08]
[1758519099781,88.18161447,231.77,231.76,1e-08]
[1758519100784,51.36719878,231.77,231.76,1e-08]
[1758519101081,51.36719878,231.77,231.76,0.66000001]
[1758519101082,84.54719878,231.77,231.76,0.66000001]
[1758519101466,84.54719878,231.77,231.76,1e-08]
[1758519102872,88.16161447,231.77,231.76,1e-08]
[1758519103478,84.54719878,231.77,231.76,1e-08]
[1758519103857,51.36719878,231.77,231.76,1e-08]
[1758519104064,84.54719878,231.77,231.76,0.66000001]
[1758519104474,84.54719878,231.77,231.76,1e-08]
[1758519106267,51.36719878,231.77,231.76,1e-08]
[1758519106466,84.54719878,231.77,231.76,1e-08]
[1758519107783,88.16161447,231.77,231.76,1e-08]
[1758519111465,88.16161447,231.77,231.73,0.1]
[1758519111672,31.2,231.74,231.73,0.1]
[1758519111899,67.25258735,231.74,231.73,0.1]
[1758519112064,80.23482332,231.74,231.73,0.1]
[1758519113072,84.55000412,231.74,231.73,0.1]
[1758519116891,51.37000412,231.74,231.73,0.1]
[1758519117097,84.55000412,231.74,231.73,0.1]
[1758519118498,81.67741677,231.74,231.73,0.1]
[1758519118668,84.56474154,231.74,231.73,0.1]
[1758519120292,84.56474154,231.74,231.73,1e-08]
[1758519124991,51.38474154,231.74,231.73,0.68000001]
[1758519125302,84.56474154,231.74,231.73,1e-08]
[1758519126689,85.22474154,231.74,231.73,1e-08]
[1758519126998,85.22474154,231.74,231.72,117.1]
[1758519126999,85.22474154,231.74,231.72,93.12123989]
[1758519127207,3.54732477,231.73,231.72,41.96979702]
[1758519127507,3.54732477,231.73,231.71,1e-08]
[1758519127798,33.18,231.72,231.71,1e-08]
[1758519127996,36.06732477,231.72,231.71,1e-08]
[1758519128194,36.72732477,231.72,231.71,1e-08]
[1758519128503,38.45843939,231.72,231.71,1e-08]
[1758519130905,42.77399264,231.72,231.71,1e-08]
[1758519131293,42.11399264,231.72,231.71,1e-08]
[1758519131806,42.83399264,231.72,231.71,1e-08]
[1758519132799,31.2,231.69,231.68,0.1]
[1758519133100,64.38,231.69,231.68,0.1]
[1758519133308,64.38,231.69,231.68,0.81]
[1758519133486,64.38,231.69,231.68,0.1]
[1758519133884,67.26885439,231.69,231.68,0.1]
[1758519134100,69.00004393,231.69,231.68,0.1]
[1758519134300,69.72004393,231.69,231.68,1e-08]
[1758519134508,69.72004393,231.69,231.67,1e-08]
[1758519134709,7.92515273,231.68,231.67,1e-08]
[1758519135399,7.20515273,231.68,231.67,1e-08]
[1758519136007,68.69629834,231.68,231.67,1e-08]
[1758519136214,71.58515273,231.68,231.67,1e-08]
[1758519137089,73.31656708,231.68,231.67,1e-08]
[1758519137711,74.03656708,231.68,231.67,1e-08]
[1758519138705,31.2,231.64,231.62,1e-08]
[1758519138912,36.06885439,231.63,231.62,1e-08]
[1758519139090,36.78885439,231.63,231.62,1e-08]
[1758519139288,38.52071852,231.63,231.62,1e-08]
[1758519140496,42.83794858,231.63,231.62,1e-08]
[1758519140697,62.83794858,231.63,231.62,1e-08]
[1758519141617,62.11794858,231.63,231.62,1e-08]
[1758519142203,29.65794858,231.63,231.62,1e-08]
[1758519142423,62.83794858,231.63,231.62,1e-08]
[1758519143097,62.85794858,231.63,231.62,1e-08]
[1758519143518,63.93930632,231.63,231.62,1e-08]
[1758519145411,31.2,231.6,231.58,1e-08]
[1758519145715,33.2,231.59,231.58,1e-08]
[1758519145907,31.2,231.59,231.58,1e-08]
[1758519146221,66.13208911,231.59,231.58,1e-08]
[1758519147725,70.45006484,231.59,231.58,1e-08]
[1758519148619,37.25006484,231.59,231.58,0.70000001]
[1758519148796,70.45006484,231.59,231.58,0.70000001]
[1758519149423,70.45006484,231.59,231.58,1e-08]
[1758519149920,37.25006484,231.59,231.58,1e-08]
[1758519150415,70.45006484,231.59,231.58,1e-08]
[1758519150613,31.2,231.55,231.54,0.7]
[1758519150918,64.4,231.55,231.51,0.1]
[1758519151117,31.2,231.52,231.51,0.1]
[1758519151304,64.4,231.52,231.51,0.1]
[1758519151697,35.51928127,231.52,231.51,0.1]
[1758519151901,68.71928127,231.52,231.51,0.8]
[1758519152123,35.51928127,231.52,231.51,0.8]
[1758519152306,79.62228911,231.52,231.51,0.8]
[1758519153405,46.42228911,231.52,231.51,0.8]
[1758519153605,79.62228911,231.52,231.51,0.8]
[1758519153807,46.42228911,231.52,231.51,0.8]
[1758519154009,79.62228911,231.52,231.51,0.8]
[1758519154508,42.10300784,231.52,231.51,0.8]
[1758519154712,31.2,231.52,231.51,0.8]
[1758519155007,33.2,231.53,231.51,0.8]
[1758519155818,149.50845876,231.54,231.51,0.8]
[1758519156025,33.2,231.53,231.51,0.8]
[1758519156617,44.00124703,231.53,231.51,0.8]
[1758519157825,48.32041033,231.53,231.52,0.7]
[1758519159423,15.12041033,231.53,231.52,0.7]
[1758519159630,48.32041033,231.53,231.52,0.7]
[1758519160924,10.80124703,231.53,231.52,0.7]
[1758519161135,44.00124703,231.53,231.52,0.7]
[1758519161509,33.2,231.53,231.52,0.7]
[1758519166941,37.52007041,231.53,231.52,0.7]
[1758519167738,41.83916512,231.53,231.52,0.7]
[1758519168827,41.83916512,231.53,231.51,0.1]
[1758519169024,41.83916512,231.53,231.51,0.8]
[1758519170728,41.83916512,231.53,231.52,0.7]
[1758519171145,37.52007041,231.53,231.52,0.7]
[1758519171347,33.2,231.53,231.52,0.7]
[1758519172244,12.98954342,231.53,231.52,0.7]
[1758519175555,12.98954342,231.53,231.51,0.1]
[1758519175853,12.98954342,231.53,231.51,0.8]
[1758519176554,165.39999999,231.54,231.52,0.7]
[1758519176746,10.80078023,231.52,231.51,0.1]
[1758519177357,10.80078023,231.52,231.51,0.8]
[1758519178564,10.80078023,231.52,231.51,0.1]
[1758519179139,49.0100615,231.52,231.51,0.1]
[1758519180355,15.8100615,231.52,231.51,0.1]
[1758519180532,49.0100615,231.52,231.51,0.1]
[1758519181133,31.2,231.48,231.41,0.1]
[1758519181333,33.2,231.47,231.41,0.1]
[1758519181530,31.2,231.48,231.41,0.1]
[1758519181531,31.2,231.48,231.41,5.12119194]
[1758519181734,10.80665651,231.46,231.42,0.7]
[1758519182155,44.00665651,231.46,231.42,0.7]
[1758519182358,44.00665651,231.46,231.42,5.02112936]
[1758519182559,44.00665651,231.46,231.43,0.7]
[1758519182752,44.00665651,231.46,231.44,0.7]
[1758519182952,44.00665651,231.46,231.45,0.7]
[1758519183353,10.80665651,231.46,231.45,0.7]
[1758519183758,10.80665651,231.46,231.43,0.7]
[1758519184162,10.80665651,231.46,231.44,0.7]
[1758519184569,10.80665651,231.46,231.45,0.7]
[1758519185745,10.80665651,231.46,231.42,0.7]
[1758519185945,10.80665651,231.46,231.43,0.7]
[1758519186261,44.69665651,231.46,231.41,0.8]
[1758519186465,44.69665651,231.46,231.42,0.7]
[1758519186662,0.69,231.45,231.41,0.1]
[1758519186964,0.69,231.45,231.41,0.8]
[1758519187344,4.3216118,231.44,231.41,0.8]
[1758519187757,4.3216118,231.44,231.41,0.1]
[1758519187957,4.3216118,231.44,231.42,0.7]
[1758519188158,64.4,231.47,231.41,4.42130756]
[1758519188367,64.4,231.47,231.43,0.7]
[1758519188568,10.80388933,231.46,231.43,0.7]
[1758519189060,11.49388933,231.46,231.41,0.8]
[1758519189357,11.49388933,231.46,231.42,0.7]
[1758519189558,11.49388933,231.46,231.41,4.4213219]
[1758519189773,33.2,231.45,231.42,0.7]
[1758519189948,33.89,231.45,231.41,0.8]
[1758519190543,13.6840444,231.44,231.41,0.1]
[1758519191166,12.9940444,231.44,231.41,0.8]
[1758519191667,31.2,231.45,231.42,0.7]
[1758519191853,42.00557935,231.45,231.42,0.7]
[1758519192055,42.00557935,231.45,231.41,4.42125587]
[1758519192056,31.2,231.45,231.41,4.42125587]
[1758519192251,31.2,231.45,231.42,0.7]
[1758519192455,10.80437372,231.44,231.42,0.7]
[1758519192968,10.80437372,231.44,231.42,5.02104576]
[1758519193158,31.88,231.48,231.42,4.32104576]
[1758519193363,33.2,231.47,231.43,0.7]
[1758519193564,10.80437372,231.46,231.44,0.7]
[1758519194462,10.80437372,231.46,231.42,15.823915]
[1758519194661,10.80437372,231.46,231.43,0.7]
[1758519195355,11.48437372,231.46,231.42,4.32104576]
[1758519195664,11.48437372,231.46,231.42,5.02104576]
[1758519195849,10.80437372,231.46,231.43,0.7]
[1758519196660,11.48437372,231.46,231.42,4.32104576]
[1758519197157,0.68,231.45,231.42,4.32104576]
[1758519197482,10.80437372,231.46,231.42,5.02104576]
[1758519197671,0.68,231.46,231.42,5.02104576]
[1758519197881,4.32104576,231.45,231.42,5.02104576]
[1758519199177,4.32104576,231.45,231.42,4.32104576]
[1758519199384,5.00104576,231.45,231.42,4.32104576]
[1758519199559,4.32104576,231.45,231.43,0.7]
[1758519200895,4.32104576,231.45,231.44,5.02077428]
[1758519201183,132.19999999,231.51,231.44,5.02077428]
[1758519201377,12.99066837,231.52,231.45,0.7]
[1758519201584,33.2,231.53,231.45,0.7]
[1758519201792,46.87010587,231.53,231.45,0.7]
[1758519202168,33.2,231.52,231.45,0.7]
[1758519202592,0.68,231.51,231.45,0.7]
[1758519203096,0.68,231.51,231.46,4.32040093]
[1758519203506,0.68,231.5,231.46,4.32040093]
[1758519206877,0.68,231.44,231.41,0.1]
[1758519207373,46.8534816,231.46,231.42,0.7]
[1758519207571,13.6534816,231.46,231.42,0.7]
[1758519207989,46.8534816,231.46,231.42,0.7]
[1758519208289,13.6534816,231.46,231.42,0.7]
[1758519208470,46.1934816,231.46,231.41,4.42120113]
[1758519208671,0.66,231.45,231.41,4.42120113]
[1758519209394,46.1934816,231.46,231.42,0.7]
[1758519209601,0.66,231.45,231.41,5.12120113]
[1758519210286,12.88908677,231.44,231.41,5.12120113]
[1758519210486,12.88908677,231.44,231.42,0.7]
[1758519210973,132.19999999,231.54,231.43,0.7]
[1758519210974,0.66,231.49,231.43,0.7]
[1758519211378,13.65123092,231.49,231.44,4.32077428]
[1758519211690,13.65123092,231.49,231.44,5.02077428]
[1758519212200,0.66,231.48,231.44,5.02077428]
[1758519212692,12.99123092,231.49,231.45,0.7]
[1758519213287,0.66,231.55,231.46,4.32040093]
[1758519213484,33.2,231.54,231.47,0.7]
[1758519213681,0.66,231.55,231.47,0.7]
[1758519213682,4.32077428,231.52,231.47,0.7]
[1758519213906,4.32077428,231.52,231.48,0.7]
[1758519214204,4.32077428,231.52,231.49,0.7]
[1758519214589,4.32077428,231.52,231.5,0.7]
[1758519214779,0.66,231.59,231.51,0.7]
[1758519214984,12.9872941,231.56,231.51,0.7]
[1758519215184,12.9872941,231.56,231.52,0.7]
[1758519215408,13.6472941,231.56,231.51,4.319311]
[1758519215706,13.6472941,231.56,231.51,5.019311]
[1758519216503,0.66,231.55,231.48,11.49978401]
[1758519216684,12.9872941,231.56,231.48,11.49978401]
[1758519216893,0.66,231.54,231.49,4.31984102]
[1758519217189,0.66,231.54,231.5,0.7]
[1758519217499,0.66,231.54,231.5,5.01961803]
[1758519218980,13.6472941,231.56,231.48,10.79978401]
[1758519219184,12.9872941,231.56,231.51,0.7]
[1758519219396,12.9872941,231.56,231.52,0.7]
[1758519219908,31.2,231.57,231.52,0.7]
[1758519220209,10.79978401,231.57,231.53,0.7]
[1758519220395,10.79978401,231.57,231.54,0.7]
[1758519220591,31.2,231.57,231.54,0.7]
[1758519220897,31.2,231.57,231.55,0.7]
[1758519221102,196.59999999,231.6,231.55,5.01860058]
[1758519221307,163.39999999,231.6,231.55,5.01860058]
[1758519221510,164.05999999,231.6,231.55,5.01860058]
[1758519221884,12.98616973,231.59,231.55,5.01860058]
[1758519222084,13.64616973,231.59,231.55,5.01860058]
[1758519222408,0.66,231.58,231.55,4.31860058]
[1758519222592,0.66,231.58,231.53,5.019003]
[1758519223001,12.98616973,231.59,231.53,5.019003]
[1758519223300,0.66,231.58,231.53,4.319003]
[1758519223604,0.66,231.57,231.51,4.31928357]
[1758519224113,0.66,231.57,231.51,5.01928357]
[1758519224710,15.11763466,231.58,231.51,5.01928357]
[1758519224917,0.66,231.56,231.51,5.01928357]
[1758519225116,0.66,231.55,231.51,5.01928357]
[1758519225588,0.66,231.57,231.51,5.01928357]
[1758519226305,0.66,231.57,231.51,4.31928357]
[1758519226506,0.66,231.57,231.52,0.7]
[1758519226704,10.79945379,231.58,231.52,0.7]
[1758519226895,10.79945379,231.58,231.53,0.7]
[1758519227096,11.45945379,231.58,231.53,0.7]
[1758519227610,11.45945379,231.58,231.53,5.01894027]
[1758519228096,11.45945379,231.58,231.54,0.7]
[1758519229016,163.39999999,231.6,231.55,0.7]
[1758519229319,0.66,231.63,231.55,0.7]
[1758519229609,33.18,231.62,231.56,4.31853515]
[1758519229910,10.79841882,231.6,231.57,0.7]
[1758519230103,33.84,231.62,231.57,0.7]
[1758519230487,0.66,231.61,231.57,0.7]
[1758519231503,10.79773679,231.62,231.57,5.0182298]
[1758519231702,37.49724366,231.63,231.57,5.0182298]
[1758519231893,0.66,231.62,231.57,5.0182298]
[1758519232090,0.66,231.61,231.55,4.31854822]
[1758519232291,31.86,231.6,231.52,0.7]
[1758519232491,33.18,231.59,231.52,0.7]
[1758519233105,33.84,231.59,231.52,0.7]
[1758519233609,33.84,231.59,231.53,4.31909471]
[1758519237417,33.84,231.59,231.52,0.71]
[1758519237717,33.84,231.59,231.53,0.71]
[1758519240425,33.84,231.59,231.54,4.31890818]
[1758519240625,0.66,231.59,231.54,4.31890818]
[1758519240925,64.38,231.6,231.54,5.02890818]
[1758519241127,31.2,231.6,231.55,0.71]
[1758519241299,31.2,231.6,231.56,0.71]
[1758519241494,33.85,231.61,231.56,0.71]
[1758519241696,0.67,231.61,231.56,0.71]
[1758519242325,0.67,231.6,231.54,15.11617863]
[1758519242531,0.67,231.6,231.54,5.02890818]
[1758519242713,0.67,231.59,231.54,5.02890818]
[1758519242920,0.67,231.58,231.54,5.02890818]
[1758519244617,0.67,231.57,231.48,11.50982066]
[1758519244823,0.67,231.56,231.49,0.71]
[1758519245219,0.67,231.58,231.49,0.71]
[1758519246908,4.98824917,231.58,231.5,4.31965442]
[1758519247108,0.67,231.57,231.5,4.31965442]
[1758519247308,0.67,231.56,231.5,4.31965442]